fUSD/lending_fUSD_20260608
["ID","MTS","AMOUNT","RATE_DAILY","PERIOD"]
[424456339,1780926641000,-500.0,0.00014301,2]
[424456336,1780926641000,-500.0,0.00014301,2]
[424456327,1780926641000,-150.0,0.00014301,2]
[424456347,1780926641000,-500.0,0.00014301,2]
[424456342,1780926641000,-500.0,0.00014301,2]
[424456425,1780926642000,-1231.0,0.00014702,2]
[424456417,1780926642000,-951.221767,0.000147,2]
[424456408,1780926642000,-25000.0,0.00014671,3]
[424456414,1780926642000,-151.0,0.000147,2]
[424456418,1780926642000,-951.221767,0.000147,2]
[424456423,1780926642000,-20480.23085432,0.000147,2]
[424456410,1780926642000,-25000.0,0.0001468,3]
[424456424,1780926642000,-772.0,0.00014702,2]
[424456415,1780926642000,-151.0,0.000147,2]
[424456413,1780926642000,-529.08375873,0.000147,2]
[424456409,1780926642000,-1193.3,0.00014675,2]
[424456422,1780926642000,-151.0,0.000147,2]
[424456416,1780926642000,-951.221767,0.000147,2]
[424456421,1780926642000,-151.0,0.000147,2]
[424456434,1780926642000,-150.0,0.00014718,2]
[424456420,1780926642000,-151.0,0.000147,2]
[424456427,1780926642000,-2181.10590754,0.00014702,2]
[424456428,1780926642000,-841.3188791,0.00014702,2]
[424456426,1780926642000,-390.0,0.00014702,2]
[424456429,1780926642000,-2617.67609917,0.00014702,2]
[424456437,1780926642000,-700.0,0.00014726,2]
[424456433,1780926642000,-25000.0,0.00014715,3]
[424456430,1780926642000,-2834.48051187,0.00014702,2]
[424456438,1780926642000,-25000.0,0.00014733,3]
[424456431,1780926642000,-25000.0,0.00014706,3]
[424456432,1780926642000,-427.0,0.00014713,2]
[424456439,1780926642000,-6111.0,0.00014734,2]
[424456436,1780926642000,-25000.0,0.00014724,3]
[424456411,1780926642000,-25000.0,0.00014689,3]
[424456419,1780926642000,-951.221767,0.000147,2]
[424456407,1780926642000,-25000.0,0.00014662,3]
[424456379,1780926642000,-166.66,0.00014384,2]
[424456412,1780926642000,-25000.0,0.00014698,3]
[424456376,1780926642000,-615.0,0.00014301,2]
[424456378,1780926642000,-700.0,0.00014321,2]
[424456380,1780926642000,-150.0,0.00014398,2]
[424456381,1780926642000,-159.88927105,0.00014424,2]
[424456382,1780926642000,-150.0,0.00014434,2]
[424456377,1780926642000,-632.47344829,0.00014301,2]
[424456383,1780926642000,-150.0,0.00014434,2]
[424456385,1780926642000,-151.0,0.00014437,2]
[424456384,1780926642000,-151.0,0.00014437,2]
[424456386,1780926642000,-10000.0,0.00014463,2]
[424456387,1780926642000,-10000.0,0.00014489,2]
[424456389,1780926642000,-150.0,0.00014505,2]
[424456398,1780926642000,-13200.64416756,0.00014608,2]
[424456399,1780926642000,-25000.0,0.0001461,3]
[424456400,1780926642000,-150.0,0.00014612,2]
[424456388,1780926642000,-12871.71,0.00014504,2]
[424456390,1780926642000,-150.0,0.00014558,2]
[424456391,1780926642000,-299.34420125,0.00014581,10]
[424456392,1780926642000,-256.5317897,0.00014599,2]
[424456394,1780926642000,-529.08375873,0.000146,2]
[424456395,1780926642000,-181.64888321,0.000146,2]
[424456393,1780926642000,-150.0,0.000146,2]
[424456396,1780926642000,-181.64888322,0.000146,2]
[424456397,1780926642000,-1848.03,0.00014607,2]
[424456401,1780926642000,-25000.0,0.00014618,3]
[424456404,1780926642000,-25000.0,0.00014645,3]
[424456402,1780926642000,-25000.0,0.00014627,3]
[424456406,1780926642000,-427.0,0.00014654,2]
[424456403,1780926642000,-25000.0,0.00014636,3]
[424456405,1780926642000,-25000.0,0.00014654,3]
[424456435,1780926642000,-15000.0,0.00014719,2]
[424456453,1780926642000,-10265.5628898,0.00014769,2]
[424456451,1780926642000,-25000.0,0.00014768,3]
[424456482,1780926642000,-450.0,0.0001485,2]
[424456480,1780926642000,-237280.7495408,0.0001485,2]
[424456479,1780926642000,-190.932,0.0001485,2]
[424456478,1780926642000,-1391.88,0.0001485,2]
[424456484,1780926642000,-25000.0,0.00014856,3]
[424456494,1780926642000,-1500.0,0.00014869,2]
[424456495,1780926642000,-25000.0,0.00014874,3]
[424456483,1780926642000,-25000.0,0.00014856,3]
[424456485,1780926642000,-392.0,0.00014864,2]
[424456490,1780926642000,-446.0,0.00014865,2]
[424456487,1780926642000,-25000.0,0.00014865,3]
[424456488,1780926642000,-448.0,0.00014865,2]
[424456486,1780926642000,-25000.0,0.00014865,3]
[424456491,1780926642000,-427.0,0.00014865,2]
[424456489,1780926642000,-452.0,0.00014865,2]
[424456492,1780926642000,-1252.0,0.00014866,2]
[424456493,1780926642000,-1030.0,0.00014869,2]
[424456496,1780926642000,-200.0,0.0001488,2]
[424456507,1780926642000,-2000.0,0.000149,2]
[424456497,1780926642000,-25000.0,0.00014882,3]
[424456498,1780926642000,-5800.0,0.00014883,2]
[424456505,1780926642000,-25000.0,0.000149,3]
[424456506,1780926642000,-529.08375873,0.000149,2]
[424456502,1780926642000,-381.0,0.00014898,2]
[424456499,1780926642000,-25000.0,0.00014891,3]
[424456441,1780926642000,-427.0,0.0001474,2]
[424456501,1780926642000,-507.02472497,0.00014894,10]
[424456503,1780926642000,-500.0,0.00014899,2]
[424456504,1780926642000,-3986.0,0.000149,5]
[424456481,1780926642000,-452.0,0.0001485,2]
[424456470,1780926642000,-25000.0,0.0001483,3]
[424456500,1780926642000,-5800.0,0.00014891,2]
[424456477,1780926642000,-8413.00934282,0.0001485,2]
[424456476,1780926642000,-2000.0,0.00014847,2]
[424456452,1780926642000,-4920.90826675,0.00014769,2]
[424456442,1780926642000,-25000.0,0.00014742,3]
[424456443,1780926642000,-427.0,0.00014743,2]
[424456444,1780926642000,-364.0,0.0001475,2]
[424456448,1780926642000,-25000.0,0.00014759,3]
[424456447,1780926642000,-6111.0,0.00014757,2]
[424456449,1780926642000,-181.64888321,0.0001476,2]
[424456446,1780926642000,-25000.0,0.0001475,3]
[424456450,1780926642000,-150.0,0.00014766,2]
[424456454,1780926642000,-427.0,0.00014776,2]
[424456455,1780926642000,-25000.0,0.00014777,3]
[424456464,1780926642000,-392.0,0.00014806,2]
[424456460,1780926642000,-398.0,0.00014796,2]
[424456459,1780926642000,-25000.0,0.00014794,3]
[424456440,1780926642000,-10000.0,0.00014737,2]
[424456467,1780926642000,-25000.0,0.00014821,3]
[424456465,1780926642000,-25000.0,0.00014812,3]
[424456473,1780926642000,-15000.0,0.00014838,2]
[424456471,1780926642000,-25000.0,0.00014838,3]
[424456472,1780926642000,-25000.0,0.00014838,3]
[424456469,1780926642000,-25000.0,0.0001483,3]
[424456458,1780926642000,-392.0,0.00014792,2]
[424456474,1780926642000,-25000.0,0.00014847,3]
[424456462,1780926642000,-1100.0,0.000148,5]
[424456466,1780926642000,-427.0,0.00014819,2]
[424456463,1780926642000,-25000.0,0.00014803,3]
[424456475,1780926642000,-25000.0,0.00014847,3]
[424456456,1780926642000,-25000.0,0.00014786,3]
[424456461,1780926642000,-529.08375873,0.000148,2]
[424456468,1780926642000,-150.0,0.00014825,2]
[424456538,1780926643000,-2062976.0086853,0.00014967,2]
[424456553,1780926643000,-151.0,0.00014967,2]
[424456537,1780926643000,-324.34566573,0.00014967,2]
[424456546,1780926643000,-951.221767,0.00014967,2]
[424456540,1780926643000,-3252.7461308,0.00014967,2]
[424456549,1780926643000,-951.221767,0.00014967,2]
[424456541,1780926643000,-151.0,0.00014967,2]
[424456547,1780926643000,-951.221767,0.00014967,2]
[424456542,1780926643000,-161.92787,0.00014967,2]
[424456550,1780926643000,-151.0,0.00014967,2]
[424456543,1780926643000,-151.0,0.00014967,2]
[424456544,1780926643000,-151.0,0.00014967,2]
[424456552,1780926643000,-151.0,0.00014967,2]
[424456565,1780926643000,-151.0,0.00014967,2]
[424456557,1780926643000,-169.755123,0.00014967,2]
[424456555,1780926643000,-169.755123,0.00014967,2]
[424456559,1780926643000,-169.755123,0.00014967,2]
[424456564,1780926643000,-151.0,0.00014967,2]
[424456556,1780926643000,-169.755123,0.00014967,2]
[424456554,1780926643000,-159.476412,0.00014967,2]
[424456560,1780926643000,-151.0,0.00014967,2]
[424456567,1780926643000,-169.755123,0.00014967,2]
[424456562,1780926643000,-169.755123,0.00014967,2]
[424456561,1780926643000,-151.0,0.00014967,2]
[424456545,1780926643000,-951.221767,0.00014967,2]
[424456563,1780926643000,-169.755123,0.00014967,2]
[424456539,1780926643000,-309081.3341088,0.00014967,2]
[424456509,1780926643000,-1100.0,0.000149,5]
[424456530,1780926643000,-577.1790522,0.00014965,2]
[424456508,1780926643000,-4455.0,0.000149,5]
[424456510,1780926643000,-185.51206649,0.000149,2]
[424456520,1780926643000,-150.0,0.00014932,2]
[424456521,1780926643000,-150.0,0.00014932,2]
[424456512,1780926643000,-427.0,0.00014902,2]
[424456514,1780926643000,-350.0,0.00014926,2]
[424456511,1780926643000,-5800.0,0.000149,2]
[424456522,1780926643000,-150.0,0.00014932,2]
[424456518,1780926643000,-152.29803504,0.00014932,2]
[424456513,1780926643000,-350.0,0.00014926,2]
[424456515,1780926643000,-150.42029641,0.00014932,2]
[424456516,1780926643000,-153.84603978,0.00014932,2]
[424456536,1780926643000,-8273.5547048,0.00014967,2]
[424456519,1780926643000,-150.0,0.00014932,2]
[424456524,1780926643000,-225925.20369163,0.0001494,2]
[424456534,1780926643000,-300.0,0.00014966,2]
[424456535,1780926643000,-431514.8863757,0.00014967,2]
[424456523,1780926643000,-256.53749417,0.00014936,2]
[424456526,1780926643000,-10000.0,0.00014941,2]
[424456531,1780926643000,-300.0,0.00014966,2]
[424456527,1780926643000,-1495.61,0.00014942,2]
[424456525,1780926643000,-151.0,0.0001494,2]
[424456533,1780926643000,-300.0,0.00014966,2]
[424456532,1780926643000,-300.0,0.00014966,2]
[424456529,1780926643000,-6879.94196857,0.0001496,2]
[424456528,1780926643000,-262.66289261,0.00014945,7]
[424456517,1780926643000,-169.83658506,0.00014932,2]
[424456575,1780926643000,-634.0,0.0001499,2]
[424456579,1780926643000,-300.0,0.00014998,2]
[424456578,1780926643000,-151.0,0.00014997,2]
[424456597,1780926643000,-6382.17730127,0.00015,2]
[424456596,1780926643000,-10120.20714548,0.00015,2]
[424456604,1780926643000,-189.369969,0.00015,2]
[424456616,1780926643000,-913.95,0.00015,2]
[424456606,1780926643000,-189.369969,0.00015,2]
[424456605,1780926643000,-189.369969,0.00015,2]
[424456608,1780926643000,-150.0,0.00015,2]
[424456607,1780926643000,-189.369969,0.00015,2]
[424456609,1780926643000,-201.33333333,0.00015,2]
[424456610,1780926643000,-16217.70849496,0.00015,2]
[424456613,1780926643000,-520.9,0.00015,2]
[424456611,1780926643000,-150.0,0.00015,2]
[424456612,1780926643000,-9475.5641179,0.00015,2]
[424456615,1780926643000,-2000.0,0.00015,2]
[424456614,1780926643000,-2000.0,0.00015,2]
[424456617,1780926643000,-1897.48,0.00015,2]
[424456620,1780926643000,-2000.0,0.00015,2]
[424456619,1780926643000,-1228.48,0.00015,2]
[424456618,1780926643000,-150.0,0.00015,2]
[424456622,1780926643000,-2000.0,0.00015,2]
[424456621,1780926643000,-2000.0,0.00015,2]
[424456623,1780926643000,-941.09,0.00015,2]
[424456624,1780926643000,-2000.0,0.00015,2]
[424456625,1780926643000,-892.12,0.00015,2]
[424456577,1780926643000,-151.0,0.00014997,2]
[424456595,1780926643000,-359.17544839,0.00015,2]
[424456602,1780926643000,-189.369969,0.00015,2]
[424456601,1780926643000,-189.369969,0.00015,2]
[424456600,1780926643000,-189.369969,0.00015,2]
[424456576,1780926643000,-400.0,0.0001499,3]
[424456568,1780926643000,-151.0,0.00014967,2]
[424456566,1780926643000,-169.755123,0.00014967,2]
[424456570,1780926643000,-427.0,0.00014977,2]
[424456569,1780926643000,-307.97874569,0.00014968,2]
[424456571,1780926643000,-444.0,0.00014983,2]
[424456572,1780926643000,-452.0,0.00014983,2]
[424456573,1780926643000,-152.0,0.00014989,2]
[424456574,1780926643000,-152.0,0.00014989,2]
[424456598,1780926643000,-200.0,0.00015,2]
[424456590,1780926643000,-300.0,0.00014999,2]
[424456582,1780926643000,-666.0,0.00014999,2]
[424456580,1780926643000,-300.0,0.00014998,2]
[424456584,1780926643000,-300.0,0.00014999,2]
[424456585,1780926643000,-300.0,0.00014999,2]
[424456603,1780926643000,-189.369969,0.00015,2]
[424456588,1780926643000,-300.0,0.00014999,2]
[424456594,1780926643000,-199.54191577,0.00015,2]
[424456593,1780926643000,-351.81334123,0.00015,2]
[424456592,1780926643000,-4046829.07333238,0.00015,2]
[424456599,1780926643000,-185.6716272,0.00015,2]
[424456587,1780926643000,-300.0,0.00014999,2]
[424456589,1780926643000,-235.88706806,0.00014999,2]
[424456586,1780926643000,-300.0,0.00014999,2]
[424456583,1780926643000,-300.0,0.00014999,2]
[424456591,1780926643000,-991982.3246696,0.00015,2]
[424456581,1780926643000,-300.0,0.00014999,2]
[424456636,1780926644000,-1000.0,0.00015,2]
[424456627,1780926644000,-529.08375873,0.00015,2]
[424456626,1780926644000,-1735.27,0.00015,2]
[424456629,1780926644000,-1004.26684243,0.00015,2]
[424456639,1780926644000,-383.0,0.00015,2]
[424456628,1780926644000,-151.0,0.00015,2]
[424456632,1780926644000,-178.89386,0.00015,2]
[424456630,1780926644000,-3555.0,0.00015,2]
[424456633,1780926644000,-2000.0,0.00015,2]
[424456635,1780926644000,-151.0,0.00015,2]
[424456637,1780926644000,-4050.46458789,0.00015,2]
[424456638,1780926644000,-4050.46458789,0.00015,2]
[424456631,1780926644000,-1368.195,0.00015,2]
[424456647,1780926644000,-151.0,0.00015,2]
[424456651,1780926644000,-169.755123,0.00015,2]
[424456650,1780926644000,-645.0,0.00015,2]
[424456644,1780926644000,-951.221767,0.00015,2]
[424456649,1780926644000,-1107.39910373,0.00015,2]
[424456643,1780926644000,-951.221767,0.00015,2]
[424456640,1780926644000,-1240.909,0.00015,2]
[424456642,1780926644000,-951.221767,0.00015,2]
[424456634,1780926644000,-151.0,0.00015,2]
[424456641,1780926644000,-951.221767,0.00015,2]
[424456778,1780926645000,-215.35374638,0.000162,2]
[424456784,1780926645000,-300.0,0.00016256,2]
[424456781,1780926645000,-300.0,0.00016256,2]
[424456785,1780926645000,-300.0,0.00016256,2]
[424456779,1780926645000,-168.92431803,0.00016222,2]
[424456774,1780926645000,-362.0,0.00016189,2]
[424456780,1780926645000,-356.0,0.00016249,4]
[424456777,1780926645000,-6382.17730127,0.000162,2]
[424456775,1780926645000,-500.0,0.00016199,9]
[424456783,1780926645000,-300.0,0.00016256,2]
[424456773,1780926645000,-709.42201212,0.00016164,4]
[424456776,1780926645000,-10120.20714548,0.000162,2]
[424456794,1780926645000,-2129.0,0.00016333,2]
[424456790,1780926645000,-182.0,0.00016256,2]
[424456793,1780926645000,-396.09,0.00016325,2]
[424456787,1780926645000,-300.0,0.00016256,2]
[424456786,1780926645000,-300.0,0.00016256,2]
[424456771,1780926645000,-4378.76695744,0.0001611,15]
[424456788,1780926645000,-300.0,0.00016256,2]
[424456791,1780926645000,-253.51236248,0.00016264,10]
[424456789,1780926645000,-300.0,0.00016256,2]
[424456792,1780926645000,-151.0,0.00016272,2]
[424456805,1780926645000,-212.80686294,0.00016438,2]
[424456797,1780926645000,-1746.53,0.000164,2]
[424456811,1780926645000,-151.0,0.00016438,2]
[424456807,1780926645000,-235.64,0.00016438,2]
[424456809,1780926645000,-248.70522723,0.00016438,2]
[424456795,1780926645000,-10120.20714548,0.000164,2]
[424456772,1780926645000,-246.0,0.00016131,2]
[424456769,1780926645000,-6382.17730127,0.000161,2]
[424456770,1780926645000,-215.35374638,0.000161,2]
[424456796,1780926645000,-6382.17730127,0.000164,2]
[424456746,1780926645000,-10120.20714548,0.000158,2]
[424456745,1780926645000,-350.0,0.00015766,2]
[424456743,1780926645000,-350.0,0.00015764,3]
[424456744,1780926645000,-7224.383193,0.00015766,2]
[424456752,1780926645000,-10120.20714548,0.000159,2]
[424456757,1780926645000,-1613.0535,0.00015965,2]
[424456749,1780926645000,-4809.27029055,0.00015801,2]
[424456748,1780926645000,-178.89387,0.000158,2]
[424456750,1780926645000,-304.21949627,0.00015856,2]
[424456754,1780926645000,-1848.03,0.00015935,2]
[424456755,1780926645000,-4809.27029055,0.00015962,2]
[424456756,1780926645000,-1107.63007,0.00015965,2]
[424456747,1780926645000,-6382.17730127,0.000158,2]
[424456751,1780926645000,-1267.0,0.0001589,2]
[424456753,1780926645000,-6382.17730127,0.000159,2]
[424456758,1780926645000,-7224.383193,0.00015984,2]
[424456760,1780926645000,-1988.0,0.00016,3]
[424456764,1780926645000,-1193.3,0.00016009,2]
[424456763,1780926645000,-215.35374638,0.00016,2]
[424456759,1780926645000,-7224.383193,0.00015986,2]
[424456768,1780926645000,-10120.20714548,0.000161,2]
[424456761,1780926645000,-300.0,0.00016,2]
[424456766,1780926645000,-700.0,0.00016096,2]
[424456765,1780926645000,-500.0,0.00016096,2]
[424456767,1780926645000,-201.3234873,0.000161,7]
[424456762,1780926645000,-178.89386,0.00016,2]
[424456782,1780926645000,-300.0,0.00016256,2]
[424456799,1780926645000,-3551.6,0.00016438,2]
[424456816,1780926645000,-300.0,0.00016438,3]
[424456798,1780926645000,-300.0,0.00016437,2]
[424456843,1780926645000,-495.225755,0.00016438,2]
[424456844,1780926645000,-495.225755,0.00016438,2]
[424456841,1780926645000,-495.225755,0.00016438,2]
[424456848,1780926645000,-495.225755,0.00016438,2]
[424456846,1780926645000,-495.225755,0.00016438,2]
[424456845,1780926645000,-495.225755,0.00016438,2]
[424456847,1780926645000,-495.225755,0.00016438,2]
[424456849,1780926645000,-495.225755,0.00016438,2]
[424456859,1780926645000,-500.0,0.00016438,2]
[424456852,1780926645000,-500.0,0.00016438,2]
[424456858,1780926645000,-500.0,0.00016438,2]
[424456850,1780926645000,-495.225755,0.00016438,2]
[424456853,1780926645000,-500.0,0.00016438,2]
[424456855,1780926645000,-500.0,0.00016438,2]
[424456860,1780926645000,-500.0,0.00016438,2]
[424456857,1780926645000,-500.0,0.00016438,2]
[424456851,1780926645000,-495.225755,0.00016438,2]
[424456856,1780926645000,-500.0,0.00016438,2]
[424456861,1780926645000,-500.0,0.00016438,2]
[424456862,1780926645000,-500.0,0.00016438,2]
[424456864,1780926645000,-500.0,0.00016438,2]
[424456863,1780926645000,-500.0,0.00016438,2]
[424456865,1780926645000,-500.0,0.00016438,2]
[424456866,1780926645000,-500.0,0.00016438,2]
[424456867,1780926645000,-500.0,0.00016438,2]
[424456868,1780926645000,-500.0,0.00016438,2]
[424456800,1780926645000,-236.33866458,0.00016438,2]
[424456842,1780926645000,-495.225755,0.00016438,2]
[424456839,1780926645000,-495.225755,0.00016438,2]
[424456854,1780926645000,-500.0,0.00016438,2]
[424456838,1780926645000,-495.225755,0.00016438,2]
[424456801,1780926645000,-566.37,0.00016438,2]
[424456840,1780926645000,-495.225755,0.00016438,2]
[424456812,1780926645000,-151.0,0.00016438,2]
[424456803,1780926645000,-214.91371775,0.00016438,2]
[424456818,1780926645000,-300.0,0.00016438,3]
[424456821,1780926645000,-2207.354033,0.00016438,2]
[424456814,1780926645000,-300.0,0.00016438,3]
[424456822,1780926645000,-2207.354033,0.00016438,2]
[424456815,1780926645000,-300.0,0.00016438,3]
[424456823,1780926645000,-2207.354033,0.00016438,2]
[424456817,1780926645000,-300.0,0.00016438,3]
[424456824,1780926645000,-2207.354033,0.00016438,2]
[424456813,1780926645000,-230.61,0.00016438,2]
[424456819,1780926645000,-488.11,0.00016438,2]
[424456820,1780926645000,-2207.354033,0.00016438,2]
[424456833,1780926645000,-2207.354033,0.00016438,2]
[424456837,1780926645000,-495.225755,0.00016438,2]
[424456826,1780926645000,-2207.354033,0.00016438,2]
[424456830,1780926645000,-2207.354033,0.00016438,2]
[424456829,1780926645000,-2207.354033,0.00016438,2]
[424456832,1780926645000,-2207.354033,0.00016438,2]
[424456836,1780926645000,-495.225755,0.00016438,2]
[424456831,1780926645000,-2207.354033,0.00016438,2]
[424456835,1780926645000,-2207.354033,0.00016438,2]
[424456825,1780926645000,-2207.354033,0.00016438,2]
[424456834,1780926645000,-2207.354033,0.00016438,2]
[424456828,1780926645000,-2207.354033,0.00016438,2]
[424456827,1780926645000,-2207.354033,0.00016438,2]
[424456910,1780926646000,-10120.20714548,0.000169,2]
[424456919,1780926646000,-666.0,0.00016999,2]
[424456906,1780926646000,-635.790747,0.00016712,2]
[424456907,1780926646000,-168.37,0.00016712,2]
[424456915,1780926646000,-583.98,0.00016931,2]
[424456909,1780926646000,-1016.74,0.00016859,2]
[424456902,1780926646000,-3565.0,0.00016702,2]
[424456904,1780926646000,-1231.0,0.00016702,2]
[424456900,1780926646000,-776.0,0.00016702,2]
[424456908,1780926646000,-200.0,0.000168,3]
[424456903,1780926646000,-772.0,0.00016702,2]
[424456917,1780926646000,-1058.1,0.00016932,2]
[424456905,1780926646000,-390.0,0.00016702,2]
[424456918,1780926646000,-300.0,0.00016999,2]
[424456929,1780926646000,-150.0,0.00017384,2]
[424456921,1780926646000,-300.0,0.00016999,2]
[424456923,1780926646000,-50000.0,0.00017,2]
[424456926,1780926646000,-10120.20714548,0.000171,2]
[424456922,1780926646000,-300.0,0.00016999,2]
[424456925,1780926646000,-1734.62772924,0.00017061,2]
[424456924,1780926646000,-1191.11104074,0.00017061,2]
[424456916,1780926646000,-973.85,0.00016931,2]
[424456928,1780926646000,-10120.20714548,0.000172,2]
[424456940,1780926646000,-6000.0,0.000174,2]
[424456939,1780926646000,-30000.0,0.000174,2]
[424456938,1780926646000,-300.0,0.00017399,2]
[424456934,1780926646000,-300.0,0.00017399,2]
[424456911,1780926646000,-203.32889061,0.000169,30]
[424456920,1780926646000,-300.0,0.00016999,2]
[424456913,1780926646000,-1257.48,0.00016931,2]
[424456872,1780926646000,-500.0,0.00016438,2]
[424456897,1780926646000,-1200.0,0.000167,2]
[424456931,1780926646000,-150.0,0.00017384,2]
[424456873,1780926646000,-500.0,0.00016438,2]
[424456869,1780926646000,-500.0,0.00016438,2]
[424456870,1780926646000,-500.0,0.00016438,2]
[424456871,1780926646000,-500.0,0.00016438,2]
[424456874,1780926646000,-500.0,0.00016438,2]
[424456882,1780926646000,-500.0,0.00016438,2]
[424456876,1780926646000,-500.0,0.00016438,2]
[424456883,1780926646000,-500.0,0.00016438,2]
[424456875,1780926646000,-500.0,0.00016438,2]
[424456877,1780926646000,-500.0,0.00016438,2]
[424456884,1780926646000,-500.0,0.00016438,2]
[424456878,1780926646000,-500.0,0.00016438,2]
[424456880,1780926646000,-500.0,0.00016438,2]
[424456881,1780926646000,-500.0,0.00016438,2]
[424456886,1780926646000,-500.0,0.00016438,2]
[424456879,1780926646000,-500.0,0.00016438,2]
[424456888,1780926646000,-500.0,0.00016438,2]
[424456889,1780926646000,-500.0,0.00016438,2]
[424456890,1780926646000,-500.0,0.00016438,2]
[424456899,1780926646000,-2272.0,0.00016702,2]
[424456887,1780926646000,-500.0,0.00016438,2]
[424456898,1780926646000,-552.0,0.00016702,2]
[424456896,1780926646000,-10120.20714548,0.000167,2]
[424456891,1780926646000,-500.0,0.00016438,2]
[424456894,1780926646000,-1672.7364795,0.00016513,2]
[424456893,1780926646000,-1148.61238259,0.00016513,2]
[424456895,1780926646000,-10120.20714548,0.000166,2]
[424456892,1780926646000,-6624.7350477,0.000165,2]
[424456901,1780926646000,-840.0,0.00016702,2]
[424456941,1780926646000,-10120.20714548,0.000174,2]
[424456885,1780926646000,-500.0,0.00016438,2]
[424456932,1780926646000,-150.0,0.00017384,2]
[424456972,1780926646000,-500.0,0.00017825,2]
[424456981,1780926646000,-300.0,0.00017999,2]
[424456973,1780926646000,-1241.40834328,0.0001789,2]
[424456974,1780926646000,-10120.20714548,0.000179,2]
[424456978,1780926646000,-643.9,0.00017969,2]
[424456976,1780926646000,-169.71,0.00017935,2]
[424456979,1780926646000,-300.0,0.00017999,2]
[424456980,1780926646000,-686.3649147,0.00017999,2]
[424456977,1780926646000,-3620.0,0.00017953,2]
[424456975,1780926646000,-169.71,0.00017935,2]
[424456983,1780926646000,-111033.8385116,0.00018,2]
[424456984,1780926646000,-1209.44287759,0.00018,2]
[424456994,1780926646000,-382.0,0.00018,2]
[424456985,1780926646000,-243.42346824,0.00018,2]
[424456993,1780926646000,-1358.0,0.00018,2]
[424456982,1780926646000,-300.0,0.00017999,2]
[424456986,1780926646000,-160.0,0.00018,8]
[424456988,1780926646000,-3598.87399482,0.00018,2]
[424457000,1780926646000,-1865.36488656,0.00018157,2]
[424456991,1780926646000,-350.0,0.00018,2]
[424456989,1780926646000,-184.05441355,0.00018,2]
[424456987,1780926646000,-6482.26770674,0.00018,2]
[424456990,1780926646000,-150.0,0.00018,2]
[424456992,1780926646000,-3555.0,0.00018,2]
[424456995,1780926646000,-1227.0,0.00018,2]
[424456997,1780926646000,-1804.8284572,0.000181,2]
[424456999,1780926646000,-1280.88388877,0.00018157,2]
[424456996,1780926646000,-2000.0,0.00018006,2]
[424456933,1780926646000,-166.0,0.00017384,2]
[424456969,1780926646000,-500.0,0.00017808,2]
[424456971,1780926646000,-500.0,0.00017808,2]
[424456998,1780926646000,-10120.20714548,0.000181,2]
[424456968,1780926646000,-500.0,0.00017808,2]
[424456970,1780926646000,-500.0,0.00017808,2]
[424456937,1780926646000,-300.0,0.00017399,2]
[424456935,1780926646000,-300.0,0.00017399,2]
[424456936,1780926646000,-666.0,0.00017399,2]
[424456943,1780926646000,-1025.37,0.00017425,2]
[424456946,1780926646000,-10120.20714548,0.000176,2]
[424456945,1780926646000,-170.35,0.000175,5]
[424456947,1780926646000,-1235.18214925,0.00017609,2]